bitfinex-derivatives/quotes_BTCF0:USTF0_20250308
["timestamp","ask_amount","ask_price","bid_price","bid_amount"]
[1741477794738,0.0357,86134.0,86133.0,0.08626127]
[1741477794928,0.0357,86134.0,86133.0,0.0696722]
[1741477795116,0.0357,86134.0,86133.0,0.08626109]
[1741477795322,0.0357,86134.0,86133.0,0.15576109]
[1741477796331,0.0357,86134.0,86133.0,0.1391722]
[1741477796920,0.0357,86134.0,86133.0,0.18840316]
[1741477797319,0.0357,86134.0,86133.0,0.1391722]
[1741477798216,0.0357,86134.0,86133.0,0.18821161]
[1741477798517,0.0357,86134.0,86133.0,0.1391722]
[1741477799428,0.0721,86134.0,86133.0,0.1391722]
[1741477800218,0.3608,86137.0,86136.0,0.0696698]
[1741477800422,0.3969,86137.0,86136.0,0.0696698]
[1741477801224,0.466569,86137.0,86136.0,0.0696698]
[1741477801420,0.4312,86137.0,86136.0,0.1040698]
[1741477803219,0.4312,86137.0,86136.0,0.0696698]
[1741477803424,0.500869,86137.0,86136.0,0.0696698]
[1741477805225,0.500869,86137.0,86136.0,0.1393698]
[1741477807828,0.4312,86137.0,86136.0,0.1393698]
[1741477809934,0.500869,86137.0,86136.0,0.1393698]
[1741477812237,0.4312,86137.0,86136.0,0.1393698]
[1741477812427,0.3608,86137.0,86136.0,0.1393698]
[1741477813536,0.3608,86137.0,86136.0,0.15584583]
[1741477813933,0.4333,86137.0,86136.0,0.15584583]
[1741477814534,0.4333,86137.0,86136.0,0.1393698]
[1741477817642,0.3608,86137.0,86136.0,0.1393698]
[1741477821837,0.3945,86137.0,86136.0,0.1393698]
[1741477822542,0.3608,86137.0,86136.0,0.1393698]
[1741477823068,0.3608,86137.0,86136.0,0.18830762]
[1741477823245,0.3608,86137.0,86136.0,0.1393698]
[1741477823434,0.32450798,86137.0,86136.0,0.23976837]
[1741477824449,0.32450798,86137.0,86136.0,0.22303829]
[1741477824644,0.10435544,86138.0,86137.0,0.069669]
[1741477824844,0.10435544,86138.0,86137.0,0.139269]
[1741477825448,0.10435544,86138.0,86137.0,0.155752]
[1741477825845,0.10435544,86138.0,86137.0,0.20520095]
[1741477826147,0.10435544,86138.0,86137.0,0.155752]
[1741477826653,0.10435544,86138.0,86137.0,0.20519951]
[1741477827034,0.10435544,86138.0,86137.0,0.155752]
[1741477827956,0.10435544,86138.0,86137.0,0.20517183]
[1741477828351,0.10435544,86138.0,86137.0,0.155752]
[1741477828553,0.00017423,86138.0,86137.0,0.155752]
[1741477828949,0.00017423,86138.0,86137.0,0.20518742]
[1741477829553,0.00017423,86138.0,86137.0,0.155752]
[1741477830552,0.03777423,86138.0,86137.0,0.155752]
[1741477833461,0.03777423,86138.0,86137.0,0.15582966]
[1741477834054,0.00017423,86138.0,86137.0,0.15582966]
[1741477841665,0.00017423,86138.0,86137.0,0.139269]
[1741477845666,0.00017423,86138.0,86137.0,0.17404836]
[1741477845967,0.00017423,86138.0,86137.0,0.22395625]
[1741477848867,0.4327,86143.0,86142.0,0.0696649]
[1741477849073,0.4317,86143.0,86142.0,0.16196257]
[1741477849667,0.4317,86143.0,86142.0,0.23396257]
[1741477849863,0.0709,86143.0,86142.0,0.23396257]
[1741477850070,0.0709,86143.0,86142.0,0.24567213]
[1741477850873,0.0709,86143.0,86142.0,0.22917446]
[1741477851275,0.4317,86143.0,86142.0,0.22917446]
[1741477851580,0.3608,86143.0,86142.0,0.22917446]
[1741477852469,0.4316,86143.0,86142.0,0.22917446]
[1741477852672,0.4316,86143.0,86142.0,0.27838918]
[1741477853772,0.4316,86143.0,86142.0,0.22917446]
[1741477853975,0.4316,86143.0,86142.0,0.31298531]
[1741477855071,0.4316,86143.0,86142.0,0.26381578]
[1741477855974,0.3608,86143.0,86142.0,0.22917446]
[1741477858581,0.1053,86147.0,86142.0,0.15950956]
[1741477858779,0.1053,86147.0,86143.0,0.1044961]
[1741477858780,0.3608,86144.0,86143.0,0.1044961]
[1741477858985,0.3608,86144.0,86143.0,0.1763961]
[1741477859371,0.1053,86147.0,86146.0,0.0696617]
[1741477859577,0.4661,86147.0,86146.0,0.0696617]
[1741477860177,0.4661,86147.0,86146.0,0.1414617]
[1741477863284,0.57028121,86147.0,86146.0,0.1414617]
[1741477865288,0.20948121,86147.0,86146.0,0.1414617]
[1741477865488,0.57028121,86147.0,86146.0,0.1414617]
[1741477866992,0.4661,86147.0,86146.0,0.1414617]
[1741477868592,0.1053,86147.0,86146.0,0.1414617]
[1741477873095,0.4661,86147.0,86146.0,0.1414617]
[1741477873296,0.4661,86147.0,86146.0,0.15794611]
[1741477874306,0.4661,86147.0,86146.0,0.1414617]
[1741477875188,0.4661,86147.0,86146.0,0.15794552]
[1741477876099,0.4661,86147.0,86146.0,0.15794554]
[1741477877188,0.4661,86147.0,86146.0,0.1414617]
[1741477878194,0.4661,86147.0,86146.0,0.15793917]
[1741477879401,0.4661,86147.0,86146.0,0.15794393]
[1741477879904,0.4661,86147.0,86146.0,0.20738999]
[1741477880202,0.4661,86147.0,86146.0,0.2420927]
[1741477880701,0.1053,86147.0,86146.0,0.2420927]
[1741477880901,0.06901273,86147.0,86146.0,0.2420927]
[1741477881103,0.03331273,86147.0,86146.0,0.2420927]
[1741477881303,0.03331273,86147.0,86146.0,0.22561047]
[1741477881620,0.03331273,86147.0,86146.0,0.50408936]
[1741477882302,0.03331273,86147.0,86146.0,0.52059655]
[1741477882498,0.03331273,86147.0,86146.0,0.56376236]
[1741477883296,0.03331273,86147.0,86146.0,0.54725517]
[1741477884089,0.03331273,86147.0,86146.0,0.50408936]
[1741477885998,0.03331273,86147.0,86146.0,0.41994059]
[1741477887013,0.03331273,86147.0,86146.0,0.1414617]
[1741477887801,0.03331273,86147.0,86146.0,0.1500302]
[1741477889001,0.03331273,86147.0,86146.0,0.23377665]
[1741477889400,0.03331273,86147.0,86146.0,0.1500302]
[1741477891106,0.03331273,86147.0,86146.0,0.1414617]
[1741477891311,0.03331273,86147.0,86146.0,0.14999298]
[1741477891910,0.03331273,86147.0,86146.0,0.1414617]
[1741477898521,0.03331273,86147.0,86146.0,0.22496017]
[1741477902512,0.03331273,86147.0,86146.0,0.22796017]
[1741477903116,0.03331273,86147.0,86146.0,0.22496017]
[1741477903320,0.03331273,86147.0,86146.0,0.22696017]
[1741477905410,0.03331273,86147.0,86146.0,0.22496017]
[1741477905617,0.03331273,86147.0,86146.0,0.22696017]
[1741477905812,0.0373,86149.0,86148.0,0.0696601]
[1741477906112,0.0373,86149.0,86148.0,0.16963228]
[1741477906819,0.0373,86149.0,86148.0,0.15315857]
[1741477908522,0.00017423,86151.0,86148.0,0.15315857]
[1741477908523,0.00017423,86151.0,86150.0,0.0696585]
[1741477909126,0.00017423,86151.0,86150.0,0.1427585]
[1741477909832,0.00017423,86151.0,86150.0,0.1437585]
[1741477910515,0.00017423,86151.0,86150.0,0.1447585]
[1741477916032,0.00017423,86151.0,86150.0,0.27267045]
[1741477916823,0.00017423,86151.0,86150.0,0.31561664]
[1741477917131,0.00017423,86151.0,86150.0,0.23221545]
[1741477917330,0.00017423,86151.0,86150.0,0.1447585]
[1741477918034,0.00017423,86151.0,86150.0,0.18926354]
[1741477919232,0.00017423,86151.0,86150.0,0.1447585]
[1741477919842,0.00017423,86151.0,86150.0,0.22815969]
[1741477920134,0.00017423,86151.0,86150.0,0.27265739]
[1741477920436,0.00017423,86151.0,86150.0,0.31560358]
[1741477920634,0.00017423,86151.0,86150.0,0.66315837]
[1741477925843,0.00017423,86151.0,86150.0,0.92925717]
[1741477926233,0.00017423,86151.0,86150.0,0.80135828]
[1741477927251,0.00017423,86151.0,86150.0,0.75841209]
[1741477930448,0.00017423,86151.0,86150.0,0.1447585]
[1741477932171,0.00017423,86151.0,86150.0,0.16126369]
[1741477932360,0.1069,86160.0,86159.0,0.0696512]
[1741477932552,0.1069,86160.0,86159.0,0.16187639]
[1741477932752,0.1069,86160.0,86159.0,0.1453712]
[1741477932952,0.1069,86160.0,86159.0,0.16187718]
[1741477933248,0.3608,86161.0,86159.0,0.28380892]
[1741477933556,0.0712,86165.0,86164.0,0.0696471]
[1741477933755,0.0712,86165.0,86164.0,0.08615308]
[1741477934255,0.432,86165.0,86164.0,0.08615308]
[1741477934658,0.432,86165.0,86164.0,0.10079096]
[1741477934861,0.432,86165.0,86164.0,0.11278633]
[1741477935456,0.435,86165.0,86164.0,0.11278633]
[1741477935651,0.435,86165.0,86164.0,0.18850633]
[1741477937762,0.435,86165.0,86164.0,0.23873284]
[1741477938561,0.3987196,86165.0,86164.0,0.23873284]
[1741477938967,0.3987196,86165.0,86164.0,0.23887855]
[1741477939359,0.3987196,86165.0,86164.0,0.22424067]
[1741477939669,0.3987196,86165.0,86164.0,0.22422472]
[1741477940261,0.3987196,86165.0,86164.0,0.20744263]
[1741477941168,0.3987196,86165.0,86164.0,0.22421556]
[1741477942173,0.3987196,86165.0,86164.0,0.20744263]
[1741477942366,0.36243936,86165.0,86164.0,0.2242163]
[1741477942871,0.36243936,86165.0,86164.0,0.17398979]
[1741477943262,0.36243936,86165.0,86164.0,0.18863849]
[1741477943665,0.36243936,86165.0,86164.0,0.46696054]
[1741477944961,0.003,86165.0,86164.0,0.46696054]
[1741477945766,0.003,86165.0,86164.0,0.46692166]
[1741477947560,0.003,86165.0,86164.0,0.18859961]
[1741477948469,0.0312,86168.0,86167.0,0.0696447]
[1741477948774,0.0312,86168.0,86167.0,0.10102819]
[1741477950275,0.0312,86168.0,86167.0,0.08637949]
[1741477950972,0.0312,86168.0,86167.0,0.08837949]
[1741477951969,0.0165,86168.0,86167.0,0.12287949]
[1741477952168,0.00017413,86169.0,86168.0,0.0696439]
[1741477952368,0.00017413,86169.0,86168.0,0.15697869]
[1741477952569,0.01667413,86169.0,86168.0,0.15697869]
[1741477952769,0.03137413,86169.0,86168.0,0.15697869]
[1741477954474,0.03137413,86169.0,86168.0,0.15897869]
[1741477956169,0.03137413,86169.0,86168.0,0.15697869]
[1741477956373,0.03137413,86169.0,86168.0,0.15897869]
[1741477957279,0.01667413,86169.0,86168.0,0.15897869]
[1741477958684,0.01667413,86169.0,86168.0,0.17358957]
[1741477959986,0.00017413,86169.0,86168.0,0.17358957]
[1741477961479,0.00017413,86169.0,86168.0,0.1736096]
[1741477963486,0.00017413,86169.0,86168.0,0.25877688]
[1741477963680,0.3608,86170.0,86169.0,0.0696431]
[1741477963882,0.0367,86175.0,86174.0,0.0696391]
[1741477964082,0.0367,86175.0,86174.0,0.08639392]
[1741477964582,0.0367,86175.0,86174.0,0.1010048]
[1741477964783,0.0367,86175.0,86174.0,0.1735048]
[1741477964784,0.0532,86175.0,86174.0,0.1735048]
[1741477965285,0.06799222,86176.0,86175.0,0.0696382]
[1741477965481,0.06799222,86176.0,86175.0,0.24430239]
[1741477965687,0.06799222,86176.0,86175.0,0.38273256]
[1741477966882,0.06799222,86176.0,86175.0,0.39416838]
[1741477967085,0.06899222,86176.0,86175.0,0.39416838]
[1741477967591,0.06899222,86176.0,86175.0,0.34966646]
[1741477967792,0.06899222,86176.0,86175.0,0.39415285]
[1741477968185,0.0348,86190.0,86175.0,0.39415285]
[1741477968392,0.37626441,86232.0,86222.0,0.0696003]
[1741477968585,0.01136488,86227.0,86222.0,0.5060803]
[1741477968780,0.37779107,86223.0,86222.0,0.43648]
[1741477968987,0.37779107,86223.0,86222.0,0.36962177]
[1741477969188,0.0695995,86223.0,86222.0,0.36962177]
[1741477969689,0.0860995,86223.0,86222.0,0.36962177]
[1741477970285,0.0870995,86223.0,86222.0,0.44022207]
[1741477970487,0.0870995,86223.0,86222.0,0.37062177]
[1741477970988,0.0870995,86223.0,86222.0,0.00982177]
[1741477971186,0.2370995,86223.0,86222.0,0.00982177]
[1741477971388,0.2727995,86223.0,86222.0,0.00982177]
[1741477971585,0.2876995,86223.0,86222.0,0.00982177]
[1741477971791,0.2876995,86223.0,86222.0,0.07942207]
[1741477971991,0.1376995,86223.0,86222.0,0.07942207]
[1741477973790,0.1376995,86223.0,86222.0,0.00982177]
[1741477976791,0.0532,86223.0,86222.0,0.07942207]
[1741477976991,0.001,86223.0,86222.0,0.07942207]
[1741477977297,0.001,86223.0,86222.0,0.15002207]
[1741477977496,0.0177,86223.0,86222.0,0.15002207]
[1741477977798,0.0177,86223.0,86222.0,0.18104409]
[1741477978197,0.0872995,86223.0,86222.0,0.18104409]
[1741477978896,0.0872995,86223.0,86222.0,0.16647291]
[1741477979498,0.0872995,86223.0,86222.0,0.52727291]
[1741477979701,0.0872995,86223.0,86222.0,0.51082207]
[1741477980209,0.0177,86223.0,86222.0,0.51082207]
[1741477980892,0.001,86223.0,86222.0,0.51082207]
[1741477981801,0.001,86223.0,86222.0,0.52718952]
[1741477982898,0.001,86223.0,86222.0,0.51082207]
[1741477983605,0.0705995,86223.0,86222.0,0.51082207]
[1741477983801,0.0695995,86223.0,86222.0,0.50982207]
[1741477984001,0.001,86223.0,86222.0,0.50982207]
[1741477986292,0.0705995,86223.0,86222.0,0.50982207]
[1741477987301,0.001,86223.0,86222.0,0.50982207]
[1741477988207,0.0705995,86223.0,86222.0,0.50982207]
[1741477989012,0.0705995,86223.0,86222.0,0.5010003]
[1741477989601,0.0705995,86223.0,86222.0,0.1402003]
[1741477989801,0.0705995,86223.0,86222.0,0.5010003]
[1741477990401,0.0854995,86223.0,86222.0,0.0706]
[1741477990605,0.0696059,86215.0,86212.0,0.3608]
[1741477990824,0.0696059,86215.0,86213.0,0.0694]
[1741477991314,0.0696059,86215.0,86214.0,0.06957402]
[1741477991910,0.0696059,86215.0,86214.0,0.07157402]
[1741477992909,0.0716059,86215.0,86214.0,0.06957402]
[1741477994812,0.0716059,86215.0,86214.0,0.13918072]
[1741477998620,0.0716059,86215.0,86214.0,0.06957402]
[1741478000317,0.0716059,86215.0,86214.0,0.07812283]
[1741478000617,0.0716059,86215.0,86214.0,0.14772953]
[1741478001413,0.0716059,86215.0,86214.0,0.18312953]
[1741478002921,0.0696059,86215.0,86214.0,0.11352283]
[1741478003125,0.0716059,86215.0,86214.0,0.11352283]
[1741478003329,0.0716059,86215.0,86214.0,0.18312953]
[1741478003621,0.0716059,86215.0,86214.0,0.07812283]
[1741478005919,0.0696059,86215.0,86214.0,0.07812283]
[1741478006117,0.0716059,86215.0,86214.0,0.07812283]
[1741478009438,0.0716059,86215.0,86214.0,0.14772953]
[1741478013639,0.0716059,86215.0,86214.0,0.07812283]
[1741478014730,0.0696059,86215.0,86214.0,0.07812283]
[1741478015038,0.0716059,86215.0,86214.0,0.07812283]
[1741478018042,0.4324059,86215.0,86214.0,0.07812283]
[1741478020538,0.4324059,86215.0,86214.0,0.06957402]
[1741478023339,0.3628,86215.0,86203.0,0.036]
[1741478023533,0.0696148,86204.0,86203.0,0.00884094]
[1741478023729,0.0696164,86202.0,86201.0,0.20802256]
[1741478024365,0.1217164,86202.0,86201.0,0.20802256]
[1741478025042,0.13313363,86202.0,86201.0,0.20802256]
[1741478025341,0.13413363,86202.0,86201.0,0.20802256]
[1741478025543,0.13413363,86202.0,86201.0,0.20902256]
[1741478028634,0.13413363,86202.0,86201.0,0.001]
[1741478032145,0.49493363,86202.0,86201.0,0.001]
[1741478035046,0.13413363,86202.0,86201.0,0.001]
[1741478035247,0.49493363,86202.0,86201.0,0.001]
[1741478036350,0.49393363,86202.0,86199.0,0.0714]
[1741478036549,0.068618,86200.0,86199.0,0.0714]
[1741478037046,0.067618,86200.0,86199.0,0.0714]
[1741478038649,0.069618,86200.0,86199.0,0.0714]
[1741478039053,0.430418,86200.0,86199.0,0.0714]
[1741478039253,0.430418,86200.0,86199.0,0.0724]
[1741478039950,0.430418,86200.0,86199.0,0.0674]
[1741478041452,0.0696229,86194.0,86189.0,0.20802256]
[1741478041655,0.1452629,86194.0,86190.0,0.0365]
[1741478042456,0.2181629,86194.0,86190.0,0.0365]
[1741478044254,0.2201629,86194.0,86190.0,0.0365]
[1741478044859,0.2201629,86194.0,86191.0,0.0736]
[1741478047963,0.2201629,86194.0,86193.0,0.00866948]
[1741478048156,0.2201629,86194.0,86193.0,0.00017402]
[1741478050266,0.0716229,86194.0,86193.0,0.07870933]
[1741478050457,0.1472629,86194.0,86193.0,0.00017402]
[1741478058467,0.1814629,86194.0,86193.0,0.00017402]
[1741478063766,0.1814629,86194.0,86193.0,0.06807402]
[1741478069479,0.1794629,86194.0,86193.0,0.06807402]
[1741478069677,0.1814629,86194.0,86193.0,0.06807402]
[1741478073977,0.0696245,86192.0,86189.0,0.25620339]
[1741478074286,0.1814629,86194.0,86190.0,0.0364]
[1741478074287,0.1039253,86191.0,86190.0,0.0364]
[1741478074487,0.4647253,86191.0,86190.0,0.0364]
[1741478075077,0.4647253,86191.0,86190.0,0.29260339]
[1741478075984,0.5005253,86191.0,86190.0,0.29260339]
[1741478076485,0.5025253,86191.0,86190.0,0.29360339]
[1741478078287,0.5025253,86191.0,86190.0,0.32850339]
[1741478078589,0.5005253,86191.0,86190.0,0.32750339]
[1741478080093,0.5005253,86191.0,86190.0,0.0713]
[1741478085396,0.1397253,86191.0,86190.0,0.0713]
[1741478085697,0.5005253,86191.0,86190.0,0.0713]
[1741478088406,0.1397253,86191.0,86190.0,0.0713]
[1741478088706,0.5005253,86191.0,86190.0,0.0713]
[1741478089996,0.5005253,86191.0,86190.0,0.1065]
[1741478092398,0.1397253,86191.0,86190.0,0.1065]
[1741478092599,0.5005253,86191.0,86190.0,0.1065]
[1741478095298,0.0696253,86191.0,86190.0,0.1065]
[1741478105016,0.1467253,86191.0,86190.0,0.1065]
[1741478119320,0.1467253,86191.0,86190.0,0.0713]
[1741478122825,0.1467253,86191.0,86190.0,0.1099]
[1741478132331,0.1467253,86191.0,86190.0,0.0713]
[1741478136130,0.2031518,86191.0,86190.0,0.0713]
[1741478136624,0.5639518,86191.0,86190.0,0.1121]
[1741478139837,0.73743016,86191.0,86190.0,0.1121]
[1741478141736,0.37663016,86191.0,86190.0,0.1121]
[1741478141934,0.73743016,86191.0,86190.0,0.1121]
[1741478143041,0.66033016,86191.0,86190.0,0.1121]
[1741478146339,0.66033016,86191.0,86190.0,0.1817261]
[1741478146735,0.29953016,86191.0,86190.0,0.1817261]
[1741478146936,0.29953016,86191.0,86190.0,0.1121]
[1741478147136,0.22990486,86191.0,86190.0,0.1817261]
[1741478147343,0.22990486,86191.0,86190.0,0.19829538]
[1741478147839,0.22990486,86191.0,86190.0,0.57370742]
[1741478148156,0.0696253,86191.0,86190.0,0.57370582]
[1741478149437,0.04350969,86191.0,86190.0,0.60086408]
[1741478150339,0.04350969,86191.0,86190.0,0.57370582]
[1741478150741,0.04350969,86191.0,86190.0,0.21290582]
[1741478150942,0.04350969,86191.0,86190.0,0.57370582]
[1741478152451,0.04350969,86191.0,86190.0,0.6009174]
[1741478152949,0.04350969,86191.0,86190.0,0.60135399]
[1741478153645,0.01739441,86191.0,86190.0,0.6255906]
[1741478153858,0.0696253,86191.0,86190.0,0.6255906]
[1741478154042,0.0348111,86195.0,86190.0,0.5559661]
[1741478154345,0.0348111,86195.0,86194.0,0.0696229]
[1741478154550,0.0348111,86195.0,86194.0,0.11384035]
[1741478154946,0.10400556,86204.0,86202.0,0.0696164]
[1741478155143,0.17362116,86204.0,86203.0,0.15294141]
[1741478155445,0.1851817,86204.0,86203.0,0.23204141]
[1741478155751,0.1851817,86204.0,86203.0,0.24665345]
[1741478157051,0.08117614,86204.0,86203.0,0.24665345]
[1741478157244,0.0348066,86206.0,86203.0,0.24665345]
[1741478157245,0.0696126,86207.0,86206.0,0.0696116]
[1741478157448,0.0696126,86207.0,86206.0,0.11403741]
[1741478157953,0.0696126,86207.0,86206.0,0.20614945]
[1741478159155,0.0696126,86207.0,86206.0,0.20675198]
[1741478160255,0.1497126,86207.0,86206.0,0.13714038]
[1741478162054,0.1497126,86207.0,86206.0,0.1614047]
[1741478162852,0.1497126,86207.0,86206.0,0.0839047]
[1741478164153,0.1497126,86207.0,86206.0,0.10198395]
[1741478164359,0.1497126,86207.0,86206.0,0.0839047]
[1741478164852,0.1497126,86207.0,86206.0,0.1019851]
[1741478165851,0.1497126,86207.0,86206.0,0.0839047]
[1741478166461,0.1497126,86207.0,86206.0,0.08551123]
[1741478167356,0.1497126,86207.0,86206.0,0.10359477]
[1741478168350,0.1497126,86207.0,86206.0,0.08551123]
[1741478168755,0.1497126,86207.0,86206.0,0.10359892]
[1741478169178,0.1497126,86207.0,86206.0,0.08551123]
[1741478169959,0.1497126,86207.0,86206.0,0.06124691]
[1741478170263,0.1497126,86207.0,86191.0,0.20827493]
[1741478170264,0.0801,86207.0,86204.0,0.00565558]
[1741478170466,0.0696245,86192.0,86191.0,0.20827493]
[1741478170673,0.4304245,86192.0,86191.0,0.20827493]
[1741478171352,0.5071245,86192.0,86191.0,0.20827493]
[1741478173857,0.5071245,86192.0,86189.0,0.008896]
[1741478173858,0.0696261,86190.0,86189.0,0.008896]
[1741478174160,0.0696261,86190.0,86189.0,0.0406]
[1741478176162,0.0696261,86190.0,86189.0,0.0815]
[1741478182166,0.0696261,86190.0,86189.0,0.09797491]
[1741478182958,0.0696261,86190.0,86189.0,0.0815]
[1741478183164,0.1471261,86190.0,86189.0,0.09799783]
[1741478185069,0.1471261,86190.0,86189.0,0.09799312]
[1741478186361,0.5079261,86190.0,86189.0,0.09799312]
[1741478186566,0.1471261,86190.0,86189.0,0.09799312]
[1741478186986,0.5079261,86190.0,86189.0,0.09800087]
[1741478188160,0.1471261,86190.0,86189.0,0.09800087]
[1741478188360,0.5079261,86190.0,86189.0,0.09800087]
[1741478190759,0.1471261,86190.0,86189.0,0.09800087]
[1741478193372,0.1471261,86190.0,86189.0,0.09806625]
[1741478195870,0.1471261,86190.0,86189.0,0.11274232]
[1741478198861,0.1471261,86190.0,86189.0,0.09617607]
[1741478199063,0.1471261,86190.0,86189.0,0.0815]
[1741478207070,0.1471261,86190.0,86189.0,0.09806426]
[1741478209066,0.1471261,86190.0,86189.0,0.30633919]
[1741478211172,0.1471261,86190.0,86189.0,0.30639842]
[1741478211770,0.13867408,86192.0,86189.0,0.30639842]
[1741478211771,0.13867408,86192.0,86189.0,0.37602532]
[1741478212070,0.0696253,86191.0,86190.0,0.05782349]
[1741478212578,0.0696253,86191.0,86190.0,0.13792349]
[1741478212771,0.1102253,86191.0,86190.0,0.13792349]
[1741478212972,0.1102253,86191.0,86190.0,0.1526329]
[1741478213981,0.1489253,86191.0,86190.0,0.17988395]
[1741478215375,0.0696253,86191.0,86190.0,0.17988395]
[1741478216877,0.1087253,86191.0,86190.0,0.38815888]
[1741478217180,0.1473253,86191.0,86190.0,0.38815888]
[1741478218382,0.15888406,86191.0,86190.0,0.38815888]
[1741478218976,0.15888406,86191.0,86190.0,0.36090783]
[1741478219891,0.15888406,86191.0,86190.0,0.36108605]
[1741478220275,0.15888406,86191.0,86190.0,0.34637664]
[1741478224385,0.15888406,86191.0,86190.0,0.13810171]
[1741478227888,0.15888406,86191.0,86190.0,0.34637664]
[1741478230183,0.15888406,86191.0,86190.0,0.32957493]
[1741478231991,0.15888406,86191.0,86190.0,0.1213]
[1741478235181,0.29755814,86191.0,86190.0,0.1213]
[1741478236593,0.00068,86195.0,86194.0,0.0696229]
[1741478236791,0.17347836,86197.0,86194.0,0.11613002]
[1741478236991,0.17347836,86197.0,86196.0,0.0696213]
[1741478237793,0.17347836,86197.0,86196.0,0.1107213]
[1741478239594,0.1737238,86201.0,86200.0,0.069618]
[1741478239795,0.1041063,86201.0,86200.0,0.547318]
[1741478240588,0.1737235,86201.0,86200.0,0.547318]
[1741478244397,0.0696172,86201.0,86200.0,0.75573226]
[1741478244597,0.0696172,86201.0,86200.0,0.39493226]
[1741478244895,0.0696172,86201.0,86200.0,0.75573226]
[1741478245897,0.1044245,86203.0,86202.0,0.0696164]
[1741478246697,0.1044245,86203.0,86202.0,0.4304164]
[1741478247297,0.01144128,86204.0,86203.0,0.0696156]
[1741478247602,0.0696144,86205.0,86203.0,0.1505156]
[1741478247801,0.0696144,86205.0,86204.0,0.0696148]
[1741478248194,0.0348062,86207.0,86204.0,0.1489148]
[1741478248394,0.069614,86205.0,86204.0,0.1489148]
[1741478248795,0.08141957,86205.0,86204.0,0.0793]
[1741478248996,0.15711957,86205.0,86204.0,0.0793]
[1741478250704,0.08141957,86205.0,86204.0,0.1489148]
[1741478251003,0.01180557,86205.0,86204.0,0.1489148]
[1741478251207,0.0696126,86207.0,86206.0,0.0696132]
[1741478252011,0.069614,86206.0,86205.0,0.0696139]
[1741478252810,0.08105636,86206.0,86205.0,0.0696139]
[1741478253223,0.01144236,86206.0,86203.0,0.3608]
[1741478253417,0.0696148,86204.0,86203.0,0.3608]
[1741478253714,0.0755069,86206.0,86203.0,0.3608]
[1741478253715,0.0407,86206.0,86203.0,0.3608]
[1741478253918,0.08133078,86207.0,86206.0,0.0696132]
[1741478256610,0.069614,86205.0,86204.0,0.0348073]
[1741478257217,0.146414,86205.0,86204.0,0.0348073]
[1741478257921,0.0696156,86203.0,86200.0,0.0408]
[1741478258224,0.0696172,86201.0,86200.0,0.0408]
[1741478258726,0.1471172,86201.0,86200.0,0.0408]
[1741478262418,0.1471172,86201.0,86200.0,0.0795]
[1741478269625,0.1471172,86201.0,86200.0,0.0387]
[1741478271522,0.1471172,86201.0,86200.0,0.31658568]
[1741478271725,0.1471172,86201.0,86200.0,0.27788568]
[1741478272225,0.1471172,86201.0,86200.0,0.31898568]
[1741478274729,0.1471172,86201.0,86200.0,0.35758568]
[1741478275418,0.2512235,86201.0,86200.0,0.28849906]
[1741478279328,0.1471172,86201.0,86200.0,0.28849906]
[1741478279930,0.1471172,86201.0,86200.0,0.20879906]
[1741478280535,0.0348101,86198.0,86195.0,0.23170468]
[1741478280734,0.4304213,86196.0,86195.0,0.23170468]
[1741478281126,0.5824013,86196.0,86195.0,0.23170468]
[1741478282735,0.5824013,86196.0,86195.0,0.18765668]
[1741478284539,0.0696245,86192.0,86191.0,0.0401]
[1741478285330,0.1467245,86192.0,86191.0,0.0401]
[1741478286938,0.1467245,86192.0,86191.0,0.015622]
[1741478287729,0.0696269,86189.0,86188.0,0.046313]
[1741478288633,0.1476269,86189.0,86188.0,0.046313]
[1741478290932,0.1476269,86189.0,86188.0,0.084813]
[1741478292031,0.1476269,86189.0,86188.0,0.0762]
[1741478292239,0.1476269,86189.0,86188.0,0.07602598]
[1741478293236,0.1476269,86189.0,86188.0,0.11462598]
[1741478293642,0.5084269,86189.0,86188.0,0.11462598]
[1741478294930,0.4388,86189.0,86187.0,0.00879912]
[1741478295142,0.0696366,86177.0,86176.0,0.0399]
[1741478295337,0.0696407,86172.0,86171.0,0.0389]
[1741478295644,0.0696407,86172.0,86171.0,0.0788]
[1741478296342,0.1477407,86172.0,86171.0,0.0788]
[1741478297129,0.3608,86192.0,86171.0,0.0788]
[1741478297332,0.0784,86191.0,86179.0,0.069635]
[1741478297742,0.0696336,86181.0,86179.0,0.069635]
[1741478298140,0.0784,86191.0,86179.0,0.069635]
[1741478298141,0.10378507,86182.0,86179.0,0.109035]
[1741478298542,0.0696337,86181.0,86179.0,0.109035]
[1741478299044,0.06980822,86180.0,86179.0,0.109035]
[1741478300950,0.00017402,86180.0,86179.0,0.109035]
[1741478301841,0.0803,86192.0,86179.0,0.109035]
[1741478301842,0.0348141,86188.0,86179.0,0.0394]
[1741478302043,0.0348123,86194.0,86193.0,0.0696229]
[1741478310554,0.0747123,86194.0,86193.0,0.0696229]
[1741478312248,0.1151123,86194.0,86193.0,0.0696229]
[1741478316970,0.0803,86194.0,86193.0,0.0696229]
[1741478317352,0.1499229,86194.0,86193.0,0.0696229]
[1741478317750,0.0696229,86194.0,86193.0,0.0696229]
[1741478318654,0.0696229,86194.0,86193.0,0.1079229]
[1741478319851,0.1511229,86194.0,86193.0,0.1079229]
[1741478320458,0.1511229,86194.0,86193.0,0.0383]
[1741478321167,0.1511229,86194.0,86193.0,0.1191]
[1741478321357,0.1511229,86194.0,86193.0,0.1887237]
[1741478324666,0.1511229,86194.0,86193.0,0.1191]
[1741478326166,0.1511229,86194.0,86193.0,0.1887237]
[1741478327668,0.0815,86194.0,86193.0,0.1887237]
[1741478328168,0.1511229,86194.0,86193.0,0.1887237]
[1741478332772,0.1511229,86194.0,86193.0,0.20015567]
[1741478333764,0.0815,86194.0,86193.0,0.20015567]
[1741478336778,0.1511229,86194.0,86193.0,0.20015567]
[1741478337082,0.1511229,86194.0,86193.0,0.1887237]
[1741478339780,0.0815,86194.0,86193.0,0.1887237]
[1741478340077,0.1511229,86194.0,86193.0,0.1887237]
[1741478340469,0.0815,86194.0,86193.0,0.1887237]
[1741478341072,0.0696183,86200.0,86199.0,0.0348091]
[1741478341278,0.0696183,86200.0,86199.0,0.1146091]
[1741478341777,0.1480183,86200.0,86199.0,0.1146091]
[1741478363196,0.0784,86200.0,86199.0,0.1146091]
[1741478364293,0.00017402,86202.0,86199.0,0.1146091]
[1741478364496,0.04067402,86202.0,86201.0,0.0696172]
[1741478364698,0.04067402,86202.0,86201.0,0.1472172]
[1741478365687,0.00017402,86202.0,86201.0,0.1472172]
[1741478367898,0.00017402,86202.0,86201.0,0.5080172]
[1741478370096,0.00017402,86202.0,86201.0,0.1472172]
[1741478370400,0.00017402,86202.0,86201.0,0.84757637]
[1741478376401,0.00017402,86202.0,86201.0,0.50326177]